bitfinex/quotes_ETHUSD_20260306
["timestamp","ask_amount","ask_price","bid_price","bid_amount"]
[1772813376718,1.39970711,1974.6,1973.8,0.828]
[1772813377390,5.06431682,1974.7,1973.8,0.828]
[1772813378406,1.26601509,1974.8,1973.9,1.26652819]
[1772813378919,1.39970711,1974.6,1973.3,2.41208425]
[1772813379121,1.39970711,1974.6,1972.9,5.06858109]
[1772813379122,1.83926946,1974.5,1972.8,1.26723438]
[1772813379422,1.83926946,1974.5,1972.7,6.21415786]
[1772813379423,1.39970711,1974.2,1972.9,0.828]
[1772813379591,1.39970711,1974.0,1973.0,0.828]
[1772813379791,1.39970711,1973.8,1972.8,0.828]
[1772813380295,1.39970711,1973.8,1972.5,2.40869288]
[1772813380494,1.39970711,1973.6,1972.5,1.26742251]
[1772813380731,1.39970711,1973.6,1972.6,0.828]
[1772813382192,1.39970711,1973.6,1972.6,1.96140328]
[1772813382419,5.06662613,1973.8,1972.7,2.39677111]
[1772813382905,6.46633324,1973.8,1972.7,2.39677111]
[1772813383991,1.39970711,1973.7,1972.8,0.828]
[1772813384326,1.39970711,1973.7,1972.9,0.828]
[1772813384618,1.26672071,1973.6,1973.0,0.828]
[1772813385188,1.39970711,1973.5,1972.2,2.39030933]
[1772813385425,1.39970711,1973.5,1972.6,0.828]
[1772813385588,1.39970711,1973.5,1972.7,0.0011]
[1772813386519,1.39970711,1973.3,1972.7,0.0011]
[1772813387042,1.26684909,1973.4,1972.7,0.0011]
[1772813387187,1.26681195,1973.5,1972.7,0.0011]
[1772813387626,2.66648022,1973.6,1972.8,0.828]
[1772813387790,1.26677311,1973.6,1972.7,0.0011]
[1772813387991,1.39970711,1973.5,1972.7,0.0011]
[1772813388523,1.39970711,1973.3,1972.7,0.0011]
[1772813388736,1.35235611,1973.3,1972.7,0.0011]
[1772813390513,2.6666846,1973.2,1972.7,0.0011]
[1772813392118,1.39970711,1973.1,1972.7,0.0011]
[1772813392439,1.39970711,1972.8,1972.2,0.0011]
[1772813392634,1.39970711,1972.6,1972.2,0.0011]
[1772813394912,1.26742712,1972.5,1972.2,0.0011]
[1772813395114,1.3047941,1972.4,1971.4,0.1602027]
[1772813395338,1.3047941,1972.4,1971.5,0.0011]
[1772813397140,2.57234974,1972.3,1971.5,0.0011]
[1772813397535,1.3047941,1972.1,1970.7,1.26858476]
[1772813397748,1.3047941,1971.3,1970.1,1.26897111]
[1772813398418,1.3047941,1971.3,1970.2,0.826]
[1772813398809,0.4585404,1971.2,1970.2,0.826]
[1772813399035,1.3047941,1971.3,1970.2,0.826]
[1772813399234,1.26832732,1971.1,1970.3,1.2688423]
[1772813399546,1.26832732,1971.1,1970.3,2.0948423]
[1772813399748,1.26830904,1971.2,1970.3,2.0948423]
[1772813400352,1.26800568,1971.6,1970.4,1.12015216]
[1772813400724,2.57276644,1971.7,1970.4,1.12015216]
[1772813400930,2.5724853,1972.1,1970.6,1.11634926]
[1772813401248,1.26767078,1972.2,1970.8,1.11634926]
[1772813401547,1.3047941,1972.3,1971.0,1.11295201]
[1772813401749,1.3047941,1972.3,1970.7,2.38153677]
[1772813401957,1.3047941,1972.3,1970.8,1.93895201]
[1772813402437,1.32591965,1972.2,1970.9,0.826]
[1772813402945,1.32591965,1972.2,1970.8,0.826]
[1772813403326,1.32591965,1972.0,1970.8,3.19984349]
[1772813403937,1.32591965,1972.0,1970.9,0.826]
[1772813404141,1.32591965,1972.0,1970.8,1.26847689]
[1772813404343,1.32591965,1971.5,1970.2,1.2689067]
[1772813404660,1.32591965,1971.5,1970.3,0.826]
[1772813405027,1.32591965,1971.3,1970.1,1.26895658]
[1772813405233,1.32591965,1971.1,1970.2,0.826]
[1772813405659,1.32591965,1971.1,1969.9,2.3668507]
[1772813406243,1.32591965,1970.9,1969.6,1.26925537]
[1772813406652,1.32591965,1970.8,1969.7,0.825]
[1772813406851,2.59418263,1971.2,1969.9,1.3487701]
[1772813407401,1.32591965,1971.6,1970.1,1.3487701]
[1772813407661,1.32591965,1972.0,1970.4,0.065536]
[1772813407863,2.59370028,1972.0,1970.6,1.3487701]
[1772813408235,2.59370028,1972.0,1970.8,1.3487701]
[1772813408461,1.26771508,1972.1,1971.0,1.3487701]
[1772813408673,5.0703538,1972.3,1971.1,2.1737701]
[1772813408880,1.32591965,1972.3,1971.2,0.825]
[1772813409099,1.2672157,1972.9,1971.5,1.3487701]
[1772813409359,6.39458784,1973.0,1971.6,2.09300568]
[1772813409666,1.32591965,1972.9,1971.6,1.26800568]
[1772813409850,1.32591965,1972.9,1971.7,0.825]
[1772813410160,5.06866819,1973.0,1971.8,1.3487701]
[1772813410161,1.26710593,1973.0,1971.8,1.3487701]
[1772813410555,0.001,1971.9,1971.8,1.3487701]
[1772813410752,1.26710593,1973.0,1971.8,1.3487701]
[1772813411266,6.39534337,1973.2,1971.9,1.26781276]
[1772813411447,6.39534337,1973.2,1972.0,2.1737701]
[1772813411959,1.26797749,1973.2,1972.2,3.86122076]
[1772813412161,2.59389714,1973.2,1971.9,1.26781276]
[1772813412370,1.32591965,1973.1,1971.9,1.26781276]
[1772813412538,1.32591965,1973.1,1972.0,0.824]
[1772813412732,1.32591965,1973.1,1971.9,0.824]
[1772813413366,1.26710593,1973.0,1972.0,1.26774847]
[1772813413552,1.26802245,1973.2,1972.0,2.61651857]
[1772813414156,1.26802245,1973.2,1972.0,1.26774847]
[1772813414359,2.5939421,1973.2,1972.2,2.51245066]
[1772813414565,2.5939421,1973.2,1971.7,0.824]
[1772813414566,1.32591965,1973.1,1971.7,0.824]
[1772813415033,1.32591965,1973.0,1971.7,0.824]
[1772813415234,1.32591965,1973.0,1971.4,1.3487701]
[1772813415439,1.32591965,1973.0,1971.6,1.26796298]
[1772813415440,1.32591965,1972.8,1971.6,1.26796298]
[1772813415872,1.32591965,1972.8,1971.5,2.09202979]
[1772813416459,1.32591965,1972.8,1971.4,1.26811084]
[1772813416773,1.30058139,1972.8,1971.4,1.26811084]
[1772813416981,1.30058139,1972.8,1971.4,2.09211084]
[1772813417282,1.30058139,1972.8,1971.4,3.44088094]
[1772813417500,1.32591965,1972.6,1971.1,1.26826298]
[1772813417778,1.32591965,1972.5,1971.1,3.44103308]
[1772813418343,1.32591965,1972.5,1971.2,1.3487701]
[1772813419672,1.32591965,1972.3,1971.2,1.26823978]
[1772813420671,1.32591965,1972.3,1971.2,2.61700988]
[1772813421054,1.32591965,1972.3,1971.3,0.824]
[1772813421268,1.32591965,1972.3,1971.4,0.824]
[1772813421968,5.06996552,1972.7,1971.4,0.824]
[1772813421969,1.32591965,1972.9,1971.6,1.3487701]
[1772813422680,0.001,1972.4,1971.7,0.824]
[1772813422888,0.001,1972.4,1971.6,1.3487701]
[1772813423061,0.001,1972.4,1971.6,2.1727701]
[1772813423253,0.001,1972.4,1971.6,1.3487701]
[1772813423448,0.001,1972.4,1971.5,1.26806999]
[1772813423762,0.001,1972.4,1971.6,0.823]
[1772813424289,1.32691965,1972.4,1971.4,5.89527998]
[1772813425151,1.32691965,1972.4,1971.4,0.823]
[1772813425372,1.32691965,1972.4,1970.8,0.0011]
[1772813425553,1.32691965,1972.4,1971.0,2.09135894]
[1772813425755,1.32691965,1972.4,1970.9,1.26950704]
[1772813425961,1.32591965,1972.1,1970.9,1.26950704]
[1772813427397,1.32591965,1972.1,1970.9,2.09250704]
[1772813427583,1.26761991,1972.2,1971.0,1.3487701]
[1772813427786,1.26760043,1972.3,1971.0,1.3487701]
[1772813427958,1.26849138,1972.4,1971.2,1.3487701]
[1772813428479,0.001,1972.4,1971.2,1.3487701]
[1772813428879,0.001,1972.4,1971.4,1.3487701]
[1772813430073,0.001,1972.4,1971.5,1.26806999]
[1772813430074,1.32691965,1972.4,1971.5,1.26806999]
[1772813430969,1.32691965,1972.4,1971.4,1.26808948]
[1772813431293,1.32691965,1972.4,1971.3,1.26818605]
[1772813431493,1.32691965,1972.4,1971.1,1.26830002]
[1772813431652,1.57592119,1972.3,1971.1,1.26830002]
[1772813431857,1.57592119,1972.3,1971.1,2.09130002]
[1772813432153,1.57592119,1972.1,1971.1,1.26830002]
[1772813432860,1.57592119,1972.1,1971.0,2.0913609]
[1772813433261,1.57592119,1972.1,1971.0,1.2683609]
[1772813433672,1.57592119,1972.1,1970.9,2.0935177]
[1772813433873,1.57592119,1972.1,1970.9,1.2695177]
[1772813434057,1.57592119,1972.1,1970.9,2.0935177]
[1772813434267,1.57592119,1971.9,1970.9,1.2695177]
[1772813434467,1.57592119,1971.9,1970.9,0.8251]
[1772813434667,1.57592119,1971.8,1970.8,0.0011]
[1772813434986,1.57592119,1971.8,1970.8,1.26962018]
[1772813435166,1.57592119,1971.8,1970.8,0.0011]
[1772813435484,1.57592119,1971.8,1971.0,0.0011]
[1772813435675,1.57592119,1971.8,1970.8,0.0011]
[1772813435990,2.45461338,1971.9,1970.9,0.0011]
[1772813435991,1.57592119,1971.6,1970.9,0.0011]
[1772813436291,1.26806999,1971.5,1970.9,0.0011]
[1772813436488,1.57592119,1971.4,1970.9,0.0011]
[1772813436784,1.57592119,1971.4,1970.8,0.0011]
[1772813437991,1.26806999,1971.5,1970.8,0.0011]
[1772813438363,5.07227998,1971.6,1970.8,0.0011]
[1772813438889,1.57592119,1971.5,1970.8,0.0011]
[1772813439488,1.57592119,1971.5,1970.6,0.0011]
[1772813439687,1.57592119,1971.0,1970.0,0.0011]
[1772813439873,1.57592119,1970.8,1970.0,1.27013132]
[1772813440067,1.57592119,1970.8,1970.0,0.0011]
[1772813440273,1.57592119,1970.6,1970.0,0.0011]
[1772813441328,1.57592119,1970.6,1969.0,0.824]
[1772813441329,1.57592119,1970.1,1968.5,5.07923608]
[1772813441602,1.57592119,1970.1,1968.6,0.824]
[1772813441777,1.57592119,1970.1,1968.7,1.4559667]
[1772813441977,1.57592119,1970.1,1968.7,2.2799667]
[1772813442294,1.57592119,1969.9,1968.8,1.26980902]
[1772813442999,2.84492695,1970.1,1968.9,1.4559667]
[1772813443397,1.57592119,1970.0,1968.9,2.2789667]
[1772813443705,1.57592119,1970.0,1968.9,0.823]
[1772813444272,1.57592119,1969.8,1968.6,5.07923608]
[1772813444466,1.57592119,1969.8,1968.5,5.07923608]
[1772813444683,1.57592119,1969.8,1968.6,0.823]
[1772813445172,1.57592119,1969.8,1968.5,5.07923608]
[1772813445894,1.57592119,1969.8,1968.5,5.90223608]
[1772813446302,2.84515,1969.7,1968.5,5.90223608]
[1772813446473,2.84515,1969.7,1968.6,1.4559667]
[1772813446911,5.07691526,1969.8,1968.7,1.4559667]
[1772813446912,1.26921347,1969.8,1968.7,1.4559667]
[1772813447607,1.57592119,1970.0,1968.7,1.4559667]
[1772813447773,1.57592119,1970.0,1968.5,5.07923608]
[1772813447774,1.57592119,1970.0,1968.8,2.2789667]
[1772813447975,1.57592119,1970.0,1968.8,1.4559667]
[1772813448298,1.26909995,1969.9,1968.9,1.26974452]
[1772813448497,1.57592119,1969.8,1968.9,1.26974452]
[1772813450511,2.84511497,1969.8,1968.8,5.0789781]
[1772813450810,1.57592119,1970.1,1968.9,1.4559667]
[1772813450977,1.57592119,1970.1,1968.8,6.5349448]
[1772813451179,1.57592119,1970.1,1968.9,0.823]
[1772813451574,1.57592119,1970.1,1968.9,1.4559667]
[1772813451771,1.57592119,1970.1,1968.8,5.0789781]
[1772813452013,1.57592119,1970.1,1968.8,5.9019781]
[1772813452384,1.57592119,1970.1,1968.8,5.0789781]
[1772813452606,1.57592119,1969.9,1968.8,5.9019781]
[1772813453100,1.26903553,1970.0,1968.8,5.9019781]
[1772813453101,1.26903553,1970.0,1968.9,1.45183181]
[1772813453494,1.26903553,1970.0,1969.0,0.823]
[1772813453696,1.57592119,1970.1,1969.1,1.44679573]
[1772813453894,1.57592119,1970.4,1969.1,1.44679573]
[1772813454300,5.07485409,1970.8,1969.0,0.823]
[1772813454301,1.57592119,1971.0,1969.3,1.44177233]
[1772813454497,2.84431464,1971.0,1969.5,1.44177233]
[1772813454813,1.57592119,1970.9,1969.6,1.44177233]
[1772813455103,1.57592119,1970.9,1969.4,1.26942215]
[1772813455482,1.40637545,1970.7,1969.4,1.26942215]
[1772813455692,1.40637545,1970.5,1969.4,1.26942215]
[1772813455896,1.40637545,1970.5,1969.3,1.26945292]
[1772813456484,1.26877791,1970.4,1969.2,5.07819805]
[1772813456712,1.40637545,1970.3,1969.2,5.07819805]
[1772813457083,1.40637545,1970.3,1968.9,5.90193271]
[1772813457720,1.40637545,1970.3,1969.0,0.823]
[1772813457926,1.40637545,1970.3,1968.9,5.07893271]
[1772813458222,1.40637545,1970.3,1968.9,5.90193271]
[1772813458588,1.40637545,1970.1,1968.9,5.90193271]
[1772813459492,1.40637545,1970.1,1969.0,0.823]
[1772813460105,1.40637545,1970.1,1968.7,1.27092773]
[1772813460618,1.40637545,1969.9,1968.7,0.0011]
[1772813461583,1.40637545,1969.9,1968.7,1.4080427]
[1772813461827,1.40637545,1969.9,1969.0,0.0011]
[1772813462786,1.26916438,1969.8,1969.0,0.0011]
[1772813462988,1.50419651,1969.7,1969.0,0.0011]
[1772813463826,1.26916438,1969.8,1969.0,0.0011]
[1772813463997,1.50419651,1969.7,1969.0,0.0011]
[1772813464724,1.50419651,1969.7,1968.9,0.0011]
[1772813465037,1.50419651,1969.5,1968.9,0.0011]
[1772813465451,1.50419651,1969.5,1968.7,0.0011]
[1772813466446,1.50419651,1969.3,1968.4,1e-08]
[1772813466729,1.50419651,1969.0,1968.4,1e-08]
[1772813466898,1.50419651,1968.8,1968.4,1e-08]
[1772813469030,1.50419651,1968.6,1967.4,5.08259212]
[1772813469337,1.50419651,1968.4,1967.3,0.1602027]
[1772813469626,1.50419651,1968.4,1967.3,1.43097549]
[1772813470436,1.50419651,1968.4,1967.3,0.1602027]
[1772813470610,1.50419651,1968.4,1967.3,1.43097348]
[1772813470811,1.50419651,1968.4,1967.3,0.1602027]
[1772813471011,1.27013158,1968.3,1967.3,0.1602027]
[1772813471220,1.50419651,1968.2,1967.3,0.1602027]
[1772813472341,1.50419651,1968.2,1967.3,1e-08]
[1772813472753,1.50419651,1968.2,1966.4,2.30959496]
[1772813472754,1.50419651,1967.5,1966.1,5.0859423]
[1772813472952,1.50419651,1967.4,1966.2,1.3732048]
[1772813473139,1.2707772,1967.3,1966.3,1.27142348]
[1772813473338,1.2707772,1967.3,1966.3,2.64322006]
[1772813473726,2.77497371,1967.3,1966.3,1.27142348]
[1772813473931,1.50419651,1967.2,1966.3,1.27142348]
[1772813474624,1.2707772,1967.3,1966.3,2.63721896]
[1772813474839,1.2707772,1967.3,1967.1,0.0011]
[1772813475043,2.77458626,1967.9,1967.1,0.0011]
[1772813475352,1.50419651,1967.8,1967.1,0.0011]
[1772813476121,1.27038975,1967.9,1967.1,0.0011]
[1772813476717,2.77458626,1967.9,1967.1,0.0011]
[1772813477746,1.50419651,1967.8,1967.1,0.0011]
[1772813477952,1.50419651,1967.7,1967.1,0.0011]
[1772813479333,1.2705561,1967.7,1967.1,0.0011]
[1772813479753,1.27038975,1967.9,1967.1,0.0011]
[1772813480760,1.27019228,1968.3,1967.1,1.33138144]
[1772813481164,1.50419651,1968.2,1967.1,1.33138144]
[1772813481353,2.77445716,1968.1,1967.1,0.0011]
[1772813481559,1.50419651,1968.0,1967.1,0.0011]
[1772813483361,1.27038975,1967.9,1967.1,0.0011]
[1772813484148,2.77458626,1967.9,1967.1,0.0011]
[1772813484639,1.27038975,1967.9,1967.1,0.0011]
[1772813484963,5.08155902,1968.1,1967.1,1.30821538]
[1772813484964,5.08119062,1968.1,1967.1,1.30821538]
[1772813485542,5.0803295,1968.4,1967.3,1.30138318]
[1772813486351,5.08012552,1968.5,1967.3,1.30138318]
[1772813486552,1.26987352,1968.7,1967.3,1.30138318]
[1772813487068,1.26987352,1968.7,1967.5,1.29567716]
[1772813487572,5.07949408,1968.8,1967.5,1.29567716]
[1772813487573,5.07949408,1968.8,1967.6,3.3825822]
[1772813487795,5.07949408,1968.8,1967.6,2.5595822]
[1772813488100,1.50419651,1968.7,1967.6,2.11099875]
[1772813488247,1.50419651,1968.7,1967.3,2.11099875]
[1772813488445,1.50419651,1968.7,1967.4,1.28337663]
[1772813488761,1.50419651,1968.7,1967.5,0.822]
[1772813488942,1.50419651,1968.7,1967.5,2.10537663]
[1772813489138,1.50419651,1968.7,1967.6,1.28337663]
[1772813489375,5.07949408,1968.8,1967.6,1.28337663]
[1772813489575,1.26980902,1968.9,1967.7,2.5482614]
[1772813490272,1.50419651,1968.8,1967.4,1.27774253]
[1772813490476,1.50419651,1968.7,1967.4,2.09974253]
[1772813490775,1.50419651,1968.7,1967.4,1.27774253]
[1772813491073,1.50419651,1968.6,1967.2,2.0939002]
[1772813491243,1.50419651,1968.5,1967.2,2.0939002]
[1772813491452,1.50419651,1968.3,1967.2,2.0939002]
[1772813491847,1.50419651,1968.3,1967.2,3.35943625]
[1772813492343,1.50419651,1968.3,1967.2,0.0011]
[1772813492750,1.38931851,1968.0,1967.2,0.0011]
[1772813493078,1.38931851,1967.7,1967.1,0.0011]
[1772813493266,2.11315166,1967.8,1967.1,0.0011]
[1772813493267,1.38931851,1967.5,1967.1,0.0011]
[1772813493476,1.27071261,1967.4,1967.1,0.0011]
[1772813493777,1.38931851,1967.3,1967.1,0.0011]
[1772813493981,1.38931851,1967.3,1967.0,0.0011]
[1772813495652,1.2708418,1967.2,1967.0,0.0011]
[1772813495861,5.08261476,1967.5,1967.0,0.0011]
[1772813496053,1.27064803,1967.5,1967.0,0.0011]
[1772813496655,1.38931851,1967.4,1967.0,0.0011]
[1772813497152,2.41864803,1967.5,1967.0,0.0011]
[1772813497665,5.08207678,1967.7,1967.0,0.0011]
[1772813498378,6.47139529,1967.7,1967.0,0.0011]
[1772813498689,1.38931851,1967.6,1967.0,0.0011]
[1772813498891,5.08207678,1967.7,1967.0,0.0011]
[1772813499049,5.08207678,1967.7,1967.1,0.0011]
[1772813499254,0.001,1967.4,1967.1,0.0011]
[1772813499568,6.47128415,1967.8,1967.1,0.0011]
[1772813499766,1.38931851,1967.7,1967.1,0.0011]
[1772813501588,5.08196564,1967.8,1967.1,0.0011]
[1772813502976,1.38931851,1967.7,1967.1,0.0011]
[1772813503504,5.08196564,1967.8,1967.1,0.0011]
[1772813503655,1.38931851,1967.5,1967.1,0.0011]
[1772813504083,1.38931851,1967.5,1967.0,0.0011]
[1772813504383,1.27058345,1967.6,1967.0,0.0011]
[1772813505814,5.0823338,1967.7,1967.0,0.0011]
[1772813506256,1.27051887,1967.7,1967.0,0.0011]
[1772813507589,2.65957916,1968.1,1967.0,1.18089641]
[1772813507766,1.27038975,1967.9,1967.0,0.0011]
[1772813508086,1.27038975,1967.9,1967.0,1.27206984]
[1772813508087,1.38931851,1967.8,1967.0,1.27206984]
[1772813509885,1.27051887,1967.7,1967.0,0.0011]
[1772813510088,1.38931851,1968.3,1967.1,1.16944104]
[1772813510388,1.38931851,1968.1,1967.1,1.16944104]
[1772813510565,1.38931851,1968.0,1967.0,0.0011]
[1772813510763,1.38931851,1968.0,1967.0,1.16540329]
[1772813511266,0.001,1967.7,1967.1,0.0011]
[1772813512564,0.001,1967.7,1967.1,1.2207296]
[1772813513193,1.38931851,1968.7,1967.2,1.2196296]
[1772813514182,1.26993802,1968.6,1967.4,1.21438428]
[1772813514384,1.26993802,1968.6,1967.6,1.20917772]
[1772813514589,1.2699202,1968.7,1967.6,1.20917772]
[1772813515090,1.2699202,1968.7,1967.7,2.02917772]
[1772813515289,2.11315166,1968.6,1967.2,1.27081778]
[1772813515491,2.11315166,1968.6,1967.1,6.2884307]
[1772813515492,1.29335608,1968.5,1967.1,1.27195871]
[1772813515787,1.29335608,1968.5,1967.2,1.20319914]
[1772813516311,1.29335608,1968.3,1967.3,1.2707772]
[1772813516786,1.27006705,1968.4,1967.4,1.19801888]
[1772813517382,1.27004238,1968.5,1967.4,1.19801888]
[1772813517563,1.26992629,1968.7,1967.4,1.19801888]
[1772813517759,1.26985417,1968.8,1967.4,1.19801888]
[1772813518093,2.56321025,1968.8,1967.6,1.19286588]
[1772813518268,2.56321025,1968.8,1967.7,1.27051887]
[1772813518469,2.56321025,1968.8,1967.8,1.18772595]
[1772813518882,1.26985417,1968.8,1967.8,1.18772595]
[1772813519767,1.26968004,1969.0,1967.8,1.18772595]
[1772813520372,1.29335608,1969.0,1967.9,1.27038975]
[1772813520792,1.29335608,1969.0,1967.7,1.27051887]
[1772813521481,1.29335608,1969.0,1967.6,1.23054496]
[1772813521676,1.29335608,1969.0,1967.6,2.40225585]
[1772813521875,1.29335608,1969.0,1967.7,1.17171089]
[1772813522301,1.29335608,1969.0,1967.2,2.44255269]
[1772813522302,1.35036746,1968.7,1967.2,2.44255269]
[1772813522627,1.35036746,1968.7,1967.3,1.16781269]
[1772813522831,1.35036746,1968.7,1967.4,1.16781269]
[1772813523345,1.26980902,1968.8,1967.4,1.16781269]
[1772813523856,0.001,1968.9,1967.8,1.1627744]
[1772813524122,0.001,1968.9,1968.0,1.1627744]
[1772813524292,0.001,1968.9,1968.1,0.819]
[1772813524490,0.001,1968.9,1968.2,1.27019611]
[1772813525739,1.35136746,1968.9,1967.9,5.08140851]
[1772813525893,1.35136746,1968.9,1967.7,1.27051887]
[1772813526222,1.76873798,1968.8,1967.7,1.27051887]
[1772813526422,1.35036746,1968.8,1967.7,2.41829461]
[1772813526596,1.26987352,1968.7,1967.7,2.41829461]
[1772813527508,1.26987352,1968.7,1967.7,1.27051887]
[1772813527509,1.35036746,1968.6,1967.7,1.27051887]
[1772813527702,1.26987352,1968.7,1967.7,2.41333133]
[1772813527905,1.26986129,1968.8,1967.8,0.819]
[1772813528106,1.35036746,1968.7,1967.5,1.27064803]
[1772813528295,1.35036746,1968.7,1967.6,0.819]
[1772813528492,1.35036746,1968.7,1967.2,5.14815268]
[1772813528493,1.35036746,1968.5,1967.2,2.0898418]
[1772813528701,1.35036746,1968.5,1967.3,0.819]
[1772813528916,1.35036746,1968.5,1967.3,1.95686408]
[1772813529333,1.35036746,1968.5,1967.4,0.819]
[1772813530031,6.42973754,1968.8,1967.5,1.13293858]
[1772813530598,6.42973754,1968.8,1967.7,1.27051887]
[1772813531109,2.62017648,1968.8,1967.7,2.3985456]
[1772813531518,1.27077668,1968.9,1967.8,1.12312976]
[1772813531735,0.001,1968.9,1967.8,1.12312976]
[1772813532139,1.27074795,1968.9,1967.9,0.82]
[1772813532340,1.35036746,1968.8,1967.8,1.12312976]
[1772813532646,1.35036746,1968.8,1967.9,0.82]
[1772813532809,1.26987352,1968.7,1967.9,2.09038975]
[1772813533442,1.26987352,1968.7,1967.9,1.27038975]
[1772813534140,1.27079276,1968.9,1967.9,1.27038975]
[1772813534343,0.001,1968.9,1967.9,1.27038975]
[1772813534524,0.001,1968.9,1968.0,1.10855476]
[1772813534914,0.001,1968.9,1968.1,4.68751036]
[1772813535125,0.001,1968.9,1968.2,1.10855476]
[1772813535330,0.001,1968.8,1968.3,0.82]
[1772813535531,0.001,1968.8,1968.2,1.10855476]
[1772813535734,0.001,1968.8,1968.4,0.82]
[1772813536324,0.001,1968.8,1968.2,1.10855476]
[1772813536530,0.001,1968.8,1968.4,0.82]
[1772813536749,0.001,1968.9,1968.4,1.9179253]
[1772813536952,0.001,1968.9,1968.5,1.27000254]
[1772813537253,0.001,1968.9,1968.5,2.09000254]
[1772813537447,0.001,1968.9,1968.5,1.27000254]
[1772813537746,0.001,1968.9,1968.5,2.09000254]
[1772813537918,1.35136746,1969.7,1968.6,1.09316606]
[1772813538330,0.001,1969.7,1968.6,1.09316606]
[1772813538653,0.001,1969.7,1968.8,1.08839103]
[1772813538843,2.61966071,1969.6,1968.8,0.82]
[1772813539020,1.35036746,1969.5,1968.5,1.27000254]
[1772813539216,1.35036746,1969.5,1968.6,0.82]
[1772813540315,1.27025901,1969.7,1968.6,0.82]
[1772813540724,1.27003828,1970.0,1968.9,0.065536]
[1772813540926,0.001,1970.0,1969.0,1.26968004]
[1772813541343,1.35136746,1970.0,1969.0,1.26968004]
[1772813541527,1.35136746,1970.0,1969.0,2.08968004]
[1772813541730,1.35136746,1970.0,1968.8,0.82]
[1772813542128,1.35136746,1970.0,1968.5,5.07996094]
[1772813542129,1.35136746,1970.0,1968.9,0.819]
[1772813542829,1.35136746,1970.0,1969.0,1.26968004]
[1772813542830,1.26909995,1969.9,1969.0,1.26968004]
[1772813543027,1.26909995,1969.9,1968.9,0.819]
[1772813543028,1.35036746,1969.8,1968.9,0.819]
[1772813543422,1.35036746,1969.8,1968.7,5.07948898]
[1772813543619,1.35036746,1969.8,1968.7,1.26987352]
[1772813545021,2.61959627,1969.7,1968.7,1.26987352]
[1772813545654,2.61959627,1969.7,1968.7,2.32541506]
[1772813545953,1.35036746,1969.7,1968.7,2.32541506]
[1772813547240,1.26913733,1969.9,1968.8,1.05090399]
[1772813547444,1.27006769,1970.0,1968.8,1.05090399]
[1772813547762,2.62043515,1970.0,1968.8,1.05090399]
[1772813547958,1.35036746,1969.9,1968.7,1.26987352]
[1772813548162,1.35036746,1969.9,1968.8,0.82]
[1772813548626,1.35036746,1969.9,1968.7,1.26987352]
[1772813548825,1.35136746,1969.6,1968.8,0.82]
[1772813549232,1.2693577,1969.5,1968.9,1.26974452]
[1772813549753,1.2693577,1969.5,1968.7,5.07949283]
[1772813549754,1.2693577,1969.5,1968.7,5.07934729]
[1772813550034,2.61972516,1969.5,1968.7,5.89934729]
[1772813551053,1.35036746,1969.4,1968.6,0.0011]
[1772813551351,1.35036746,1969.2,1968.6,0.0011]
[1772813553230,1.26961556,1969.1,1968.6,0.0011]
[1772813553639,2.5538932,1969.1,1968.6,0.0011]
[1772813553838,1.26961556,1969.1,1968.6,0.0011]
[1772813554043,2.5538932,1969.1,1968.6,0.0011]
[1772813555244,1.28427764,1969.0,1968.5,0.0011]
[1772813555439,1.26974452,1968.9,1968.5,0.0011]
[1772813555938,2.55402216,1968.9,1968.5,0.0011]
[1772813556138,1.28427764,1968.8,1968.5,0.0011]
[1772813557547,1.28427764,1968.6,1968.5,0.0011]
[1772813558685,2.55405814,1968.9,1968.5,0.0011]
[1772813558847,1.26975712,1968.9,1968.5,0.0011]
[1772813560063,2.4157307,1969.0,1968.5,0.0011]
[1772813560879,1.146,1969.0,1968.5,0.0011]
[1772813561186,1.28427764,1969.1,1968.5,0.0011]
[1772813561964,1.26968004,1969.0,1968.5,0.0011]
[1772813562178,2.55394291,1969.1,1968.5,0.0011]
[1772813562952,1.28427764,1969.0,1968.5,0.0011]
[1772813565070,1.28427764,1969.5,1968.5,0.0011]
[1772813565382,1.28427764,1969.4,1968.5,0.0011]
[1772813566284,0.001,1969.6,1968.5,0.0011]
[1772813566285,0.001,1969.6,1968.5,1.28657794]
[1772813566581,0.001,1969.6,1968.6,1.28547794]
[1772813567778,0.001,1969.6,1968.5,0.8221]
[1772813567779,0.001,1969.6,1968.8,1.28547794]
[1772813569156,0.001,1969.6,1968.5,0.0011]
[1772813569157,1.28527764,1969.6,1968.5,1.28657794]
[1772813572063,0.001,1969.6,1968.5,1.28657794]
[1772813572265,1.28527764,1970.0,1968.6,1.28547794]
[1772813572581,0.001,1970.0,1968.8,1.28547794]
[1772813572956,0.001,1969.5,1968.8,1.28547794]
[1772813574689,0.001,1970.0,1968.9,1.28547794]
[1772813575688,0.001,1970.0,1969.1,1.24001613]
[1772813577717,1.26675833,1970.7,1969.3,1.24001613]
[1772813580479,1.26675833,1971.0,1969.5,1.24001613]
[1772813585524,1.23269148,1970.8,1969.5,1.24001613]
[1772813585888,1.23269148,1970.8,1969.2,1.2035469]
[1772813587418,1.23269148,1970.8,1968.6,0.82]
[1772813587419,1.23269148,1970.8,1969.4,1.2035469]
[1772813588632,1.23269148,1970.8,1968.9,0.065536]
[1772813588802,1.23269148,1970.8,1969.0,1.2035469]
[1772813591131,1.23269148,1970.7,1969.0,1.2035469]
[1772813592409,1.23269148,1970.7,1969.4,1.2035469]
[1772813594805,1.23269148,1970.7,1969.1,0.065536]
[1772813594806,1.23269148,1970.7,1969.1,1.2035469]
[1772813596231,1.23269148,1970.4,1968.8,1.2035469]
[1772813597136,1.23269148,1970.4,1969.2,0.0011]
[1772813599916,1.23269148,1970.2,1969.2,0.0011]
[1772813601241,1.23269148,1970.2,1969.2,1.2046469]
[1772813601837,1.23269148,1970.2,1969.2,0.0011]
[1772813603130,1.23269148,1970.0,1969.2,1.27065108]
[1772813603310,2.2690887,1970.3,1969.3,1.2035469]
[1772813603514,3.53793374,1970.3,1969.3,1.2035469]
[1772813603936,2.50153652,1970.3,1969.3,1.2035469]
[1772813604126,1.23269148,1970.2,1969.2,1.27065108]
[1772813604723,1.26884504,1970.3,1969.2,1.2046469]
[1772813605314,2.50153652,1970.3,1969.2,1.2046469]
[1772813605744,1.23269148,1970.3,1969.2,1.2046469]
[1772813606040,2.50154187,1970.3,1969.2,1.2046469]
[1772813606416,1.23269148,1970.3,1969.2,1.2046469]
[1772813606746,1.2687614,1970.5,1969.4,1.2035469]
[1772813607042,2.50145288,1970.5,1969.4,1.2035469]
[1772813607441,1.23269148,1970.4,1969.4,1.2035469]